[Event "Titled Tuesday Blitz February 28 Late 2023"]
[White "Osmonbekov, Talaibek"]
[Black "Eliteplayer3"]
[WhiteFideId "2017253"]
[WhiteElo "2135"]
[BlackElo "2124"]
[Result "1-0"]
[Round "06"]
[TimeControl "180+2"]
[Date "2023.02.28"]
[WhiteClock "0:00:16"]
[BlackClock "0:00:25"]

1. d4 {[%clk 0:03:00]}  c6 {[%clk 0:03:00]} 2. Bf4 {[%clk 0:03:00]}  d5 {[%clk 0:03:01]} 3. Nc3 {[%clk 0:03:00]}  Nf6 {[%clk 0:03:00]} 4. e3 {[%clk 0:03:00]}  Bf5 {[%clk 0:02:59]} 5. f3 {[%clk 0:03:00]}  h5 {[%clk 0:02:57]} 6. Bd3 {[%clk 0:02:55]}  Bxd3 {[%clk 0:02:56]} 7. Qxd3 {[%clk 0:02:56]}  e6 {[%clk 0:02:56]} 8. O-O-O {[%clk 0:02:53]}  Bd6 {[%clk 0:02:56]} 9. Bg5 {[%clk 0:02:51]}  Nbd7 {[%clk 0:02:56]} 10. e4 {[%clk 0:02:51]}  Qa5 {[%clk 0:02:36]} 11. e5 {[%clk 0:02:40]}  Nh7 {[%clk 0:02:36]} 12. Bd2 {[%clk 0:02:30]}  Bb4 {[%clk 0:02:33]} 13. a3 {[%clk 0:02:30]}  Be7 {[%clk 0:02:17]} 14. f4 {[%clk 0:02:22]}  Qc7 {[%clk 0:02:09]} 15. Qg3 {[%clk 0:02:04]}  g6 {[%clk 0:02:04]} 16. Nf3 {[%clk 0:01:49]}  a5 {[%clk 0:02:02]} 17. Kb1 {[%clk 0:01:28]}  b5 {[%clk 0:02:00]} 18. f5 {[%clk 0:01:25]}  exf5 {[%clk 0:01:58]} 19. e6 {[%clk 0:01:24]}  Qxg3 {[%clk 0:01:40]} 20. exd7+ {[%clk 0:01:23]}  Kxd7 {[%clk 0:01:41]} 21. hxg3 {[%clk 0:01:24]}  b4 {[%clk 0:01:41]} 22. Na4 {[%clk 0:01:16]}  bxa3 {[%clk 0:01:39]} 23. Nb6+ {[%clk 0:01:14]}  Kc7 {[%clk 0:01:35]} 24. Nxa8+ {[%clk 0:01:15]}  Rxa8 {[%clk 0:01:36]} 25. bxa3 {[%clk 0:01:12]}  Bxa3 {[%clk 0:01:37]} 26. Ka2 {[%clk 0:01:12]}  Bd6 {[%clk 0:01:35]} 27. Bf4 {[%clk 0:01:10]}  Bxf4 {[%clk 0:01:34]} 28. gxf4 {[%clk 0:01:11]}  Nf6 {[%clk 0:01:34]} 29. Ng5 {[%clk 0:01:02]}  Ne4 {[%clk 0:01:35]} 30. Nxe4 {[%clk 0:01:01]}  fxe4 {[%clk 0:01:36]} 31. f5 {[%clk 0:01:01]}  gxf5 {[%clk 0:01:34]} 32. Rxh5 {[%clk 0:01:00]}  Rg8 {[%clk 0:01:35]} 33. Rd2 {[%clk 0:00:53]}  f4 {[%clk 0:01:26]} 34. Rf5 {[%clk 0:00:52]}  Rg4 {[%clk 0:01:25]} 35. Rxf7+ {[%clk 0:00:36]}  Kd6 {[%clk 0:01:24]} 36. Rf6+ {[%clk 0:00:34]}  Kd7 {[%clk 0:01:22]} 37. Rf2 {[%clk 0:00:27]}  e3 {[%clk 0:01:20]} 38. Re2 {[%clk 0:00:23]}  a4 {[%clk 0:01:07]} 39. Ka3 {[%clk 0:00:23]}  Kc7 {[%clk 0:01:05]} 40. c3 {[%clk 0:00:22]}  Kb6 {[%clk 0:00:51]} 41. Kxa4 {[%clk 0:00:22]}  Rh4 {[%clk 0:00:49]} 42. Kb3 {[%clk 0:00:22]}  Kb5 {[%clk 0:00:48]} 43. Kc2 {[%clk 0:00:20]}  Rg4 {[%clk 0:00:44]} 44. Kd3 {[%clk 0:00:20]}  Rg3 {[%clk 0:00:37]} 45. Rxf4 {[%clk 0:00:19]}  Rg8 {[%clk 0:00:37]} 46. Rf7 {[%clk 0:00:19]}  Rg3 {[%clk 0:00:36]} 47. Rb2+ {[%clk 0:00:19]}  Ka6 {[%clk 0:00:35]} 48. Rf8 {[%clk 0:00:18]}  Ka7 {[%clk 0:00:34]} 49. Rf3 {[%clk 0:00:16]}  Rg8 {[%clk 0:00:31]} 50. Rxe3 {[%clk 0:00:16]}  Ka6 {[%clk 0:00:30]} 51. Re1 {[%clk 0:00:15]}  Rg3+ {[%clk 0:00:28]} 52. Re3 {[%clk 0:00:14]}  Rg7 {[%clk 0:00:26]} 53. c4 {[%clk 0:00:15]}  dxc4+ {[%clk 0:00:26]} 54. Kxc4 {[%clk 0:00:15]}  Rg4 {[%clk 0:00:25]} 55. Ra3# {[%clk 0:00:16]} 1-0


[Site "https://www.chess.com"]

[Event "Titled Tuesday Blitz February 28 Late 2023"]
[White "Jenkins, Drake"]
[Black "Vanek, Tomas"]
[WhiteFideId "2022397"]
[BlackFideId "313459"]
[WhiteElo "2300"]
[BlackElo "2052"]
[Result "1-0"]
[Round "06"]
[TimeControl "180+2"]
[Date "2023.02.28"]
[WhiteClock "0:00:14"]
[BlackClock "0:00:41"]

1. Nf3 {[%clk 0:03:00]}  d6 {[%clk 0:02:56]} 2. g3 {[%clk 0:03:00]}  f5 {[%clk 0:02:56]} 3. c4 {[%clk 0:02:59]}  e5 {[%clk 0:02:56]} 4. d3 {[%clk 0:02:59]}  Nf6 {[%clk 0:02:56]} 5. Bg2 {[%clk 0:02:59]}  Be6 {[%clk 0:02:50]} 6. Nc3 {[%clk 0:02:59]}  c6 {[%clk 0:02:49]} 7. b4 {[%clk 0:02:57]}  h6 {[%clk 0:02:41]} 8. b5 {[%clk 0:02:57]}  g5 {[%clk 0:02:40]} 9. Qa4 {[%clk 0:02:50]}  Qd7 {[%clk 0:02:25]} 10. bxc6 {[%clk 0:02:34]}  Nxc6 {[%clk 0:02:23]} 11. Rb1 {[%clk 0:02:34]}  Rc8 {[%clk 0:02:16]} 12. O-O {[%clk 0:02:30]}  Be7 {[%clk 0:02:14]} 13. Ba3 {[%clk 0:02:21]}  Kf7 {[%clk 0:02:11]} 14. Nd2 {[%clk 0:02:12]}  Nd4 {[%clk 0:02:11]} 15. Qxd7 {[%clk 0:02:07]}  Nxd7 {[%clk 0:02:06]} 16. Rxb7 {[%clk 0:02:00]}  f4 {[%clk 0:02:03]} 17. e3 {[%clk 0:01:35]}  Nc2 {[%clk 0:01:54]} 18. Rxa7 {[%clk 0:01:21]}  Nxa3 {[%clk 0:01:38]} 19. Rxa3 {[%clk 0:01:20]}  Nc5 {[%clk 0:01:37]} 20. Nd5 {[%clk 0:01:12]}  Ra8 {[%clk 0:01:18]} 21. Rxa8 {[%clk 0:01:10]}  Rxa8 {[%clk 0:01:18]} 22. Nxe7 {[%clk 0:01:10]}  Rxa2 {[%clk 0:01:17]} 23. exf4 {[%clk 0:00:26]}  Kxe7 {[%clk 0:01:09]} 24. Ne4 {[%clk 0:00:23]}  gxf4 {[%clk 0:01:08]} 25. Nxc5 {[%clk 0:00:20]}  dxc5 {[%clk 0:01:08]} 26. Re1 {[%clk 0:00:18]}  fxg3 {[%clk 0:01:06]} 27. hxg3 {[%clk 0:00:16]}  Kf6 {[%clk 0:01:06]} 28. Be4 {[%clk 0:00:15]}  Bg4 {[%clk 0:01:05]} 29. Rb1 {[%clk 0:00:12]}  Ra6 {[%clk 0:00:52]} 30. Rb5 {[%clk 0:00:12]}  Ra1+ {[%clk 0:00:50]} 31. Kg2 {[%clk 0:00:11]}  Be2 {[%clk 0:00:50]} 32. Rxc5 {[%clk 0:00:11]}  Bf1+ {[%clk 0:00:49]} 33. Kh2 {[%clk 0:00:10]}  Rd1 {[%clk 0:00:47]} 34. Rc6+ {[%clk 0:00:09]}  Kg5 {[%clk 0:00:39]} 35. Rg6+ {[%clk 0:00:08]}  Kh5 {[%clk 0:00:39]} 36. Re6 {[%clk 0:00:06]}  Bxd3 {[%clk 0:00:34]} 37. Bf3+ {[%clk 0:00:05]}  Kg5 {[%clk 0:00:34]} 38. Bxd1 {[%clk 0:00:06]}  Kf5 {[%clk 0:00:35]} 39. Rxh6 {[%clk 0:00:06]}  Bxc4 {[%clk 0:00:34]} 40. Rh4 {[%clk 0:00:05]}  Kg5 {[%clk 0:00:35]} 41. Rxc4 {[%clk 0:00:04]}  e4 {[%clk 0:00:36]} 42. Be2 {[%clk 0:00:04]}  e3 {[%clk 0:00:37]} 43. fxe3 {[%clk 0:00:05]}  Kg6 {[%clk 0:00:37]} 44. Bf3 {[%clk 0:00:04]}  Kg5 {[%clk 0:00:38]} 45. g4 {[%clk 0:00:05]}  Kf6 {[%clk 0:00:39]} 46. Kg3 {[%clk 0:00:06]}  Kg6 {[%clk 0:00:39]} 47. Rc5 {[%clk 0:00:06]}  Kh7 {[%clk 0:00:40]} 48. Rd5 {[%clk 0:00:07]}  Kh6 {[%clk 0:00:39]} 49. Kf4 {[%clk 0:00:08]}  Kg6 {[%clk 0:00:39]} 50. g5 {[%clk 0:00:09]}  Kf7 {[%clk 0:00:38]} 51. Rd6 {[%clk 0:00:10]}  Kg7 {[%clk 0:00:38]} 52. Rf6 {[%clk 0:00:11]}  Kh7 {[%clk 0:00:38]} 53. e4 {[%clk 0:00:11]}  Kg7 {[%clk 0:00:38]} 54. e5 {[%clk 0:00:12]}  Kg8 {[%clk 0:00:39]} 55. e6 {[%clk 0:00:12]}  Kg7 {[%clk 0:00:40]} 56. e7 {[%clk 0:00:13]}  Kg8 {[%clk 0:00:40]} 57. e8=Q+ {[%clk 0:00:13]}  Kg7 {[%clk 0:00:41]} 58. Qe7+ {[%clk 0:00:13]}  Kh8 {[%clk 0:00:41]} 59. Rf8# {[%clk 0:00:14]} 1-0


[Site "https://www.chess.com"]

[Event "Titled Tuesday Blitz February 28 Late 2023"]
[White "Desideri, Ricardo Maruchi"]
[Black "Prieto Aranguren, Alain"]
[WhiteFideId "2110440"]
[BlackFideId "2268906"]
[WhiteElo "1945"]
[BlackElo "2209"]
[Result "0-1"]
[Round "06"]
[TimeControl "180+2"]
[Date "2023.02.28"]
[WhiteClock "0:00:02"]
[BlackClock "0:01:05"]

1. e4 {[%clk 0:03:00]}  c6 {[%clk 0:02:50]} 2. d4 {[%clk 0:02:59]}  d5 {[%clk 0:02:49]} 3. e5 {[%clk 0:03:00]}  Be6 {[%clk 0:02:47]} 4. f4 {[%clk 0:02:54]}  Qc8 {[%clk 0:02:46]} 5. Bd3 {[%clk 0:02:53]}  h5 {[%clk 0:02:46]} 6. Nf3 {[%clk 0:02:49]}  Nh6 {[%clk 0:02:46]} 7. Ng5 {[%clk 0:02:49]}  Bf5 {[%clk 0:02:45]} 8. Nc3 {[%clk 0:02:45]}  Bxd3 {[%clk 0:02:45]} 9. Qxd3 {[%clk 0:02:44]}  Qf5 {[%clk 0:02:44]} 10. Qe2 {[%clk 0:02:01]}  e6 {[%clk 0:02:40]} 11. O-O {[%clk 0:01:52]}  Na6 {[%clk 0:02:35]} 12. a3 {[%clk 0:01:50]}  Nc7 {[%clk 0:02:34]} 13. Qxh5 {[%clk 0:01:34]}  Be7 {[%clk 0:02:31]} 14. Qe2 {[%clk 0:01:19]}  O-O-O {[%clk 0:02:29]} 15. Be3 {[%clk 0:01:07]}  f6 {[%clk 0:02:27]} 16. Nf3 {[%clk 0:01:01]}  Ng4 {[%clk 0:02:26]} 17. Bc1 {[%clk 0:00:53]}  Rdg8 {[%clk 0:02:04]} 18. h3 {[%clk 0:00:52]}  Nh6 {[%clk 0:02:04]} 19. b4 {[%clk 0:00:40]}  Qh5 {[%clk 0:01:57]} 20. b5 {[%clk 0:00:35]}  c5 {[%clk 0:01:54]} 21. dxc5 {[%clk 0:00:22]}  Nf5 {[%clk 0:01:51]} 22. b6 {[%clk 0:00:18]}  Bxc5+ {[%clk 0:01:49]} 23. Kh2 {[%clk 0:00:15]}  Bxb6 {[%clk 0:01:43]} 24. Rb1 {[%clk 0:00:14]}  g5 {[%clk 0:01:33]} 25. exf6 {[%clk 0:00:12]}  gxf4 {[%clk 0:01:23]} 26. Bxf4 {[%clk 0:00:12]}  Nh4 {[%clk 0:01:07]} 27. g3 {[%clk 0:00:07]}  Nxf3+ {[%clk 0:01:06]} 28. Qxf3 {[%clk 0:00:02]}  Qxh3# {[%clk 0:01:05]} 0-1


[Site "https://www.chess.com"]

[Event "Titled Tuesday Blitz February 28 Late 2023"]
[White "Awoki, Daniel Teidi"]
[Black "Manu_ChessExcelsior"]
[WhiteFideId "2100827"]
[WhiteElo "2083"]
[BlackElo "1978"]
[Result "1-0"]
[Round "06"]
[TimeControl "180+2"]
[Date "2023.02.28"]
[WhiteClock "0:00:27"]
[BlackClock "0:00:12"]

1. e4 {[%clk 0:02:42]}  e5 {[%clk 0:02:57]} 2. Nf3 {[%clk 0:02:42]}  Nc6 {[%clk 0:02:57]} 3. d4 {[%clk 0:02:42]}  exd4 {[%clk 0:02:57]} 4. Nxd4 {[%clk 0:02:43]}  Nf6 {[%clk 0:02:57]} 5. Nxc6 {[%clk 0:02:43]}  bxc6 {[%clk 0:02:55]} 6. e5 {[%clk 0:02:43]}  Qe7 {[%clk 0:02:55]} 7. Qe2 {[%clk 0:02:42]}  Nd5 {[%clk 0:02:54]} 8. c4 {[%clk 0:02:43]}  Ba6 {[%clk 0:02:54]} 9. g3 {[%clk 0:02:42]}  g6 {[%clk 0:02:50]} 10. Bg2 {[%clk 0:02:42]}  Bg7 {[%clk 0:02:47]} 11. O-O {[%clk 0:02:37]}  O-O {[%clk 0:02:29]} 12. Re1 {[%clk 0:02:31]}  Rae8 {[%clk 0:02:26]} 13. f4 {[%clk 0:02:22]}  Qc5+ {[%clk 0:02:18]} 14. Qf2 {[%clk 0:02:16]}  Qxf2+ {[%clk 0:02:08]} 15. Kxf2 {[%clk 0:02:17]}  Bxc4 {[%clk 0:02:08]} 16. Nd2 {[%clk 0:02:17]}  Ba6 {[%clk 0:01:50]} 17. Ne4 {[%clk 0:02:18]}  Nb4 {[%clk 0:01:44]} 18. Nc5 {[%clk 0:02:12]}  Nd3+ {[%clk 0:01:32]} 19. Nxd3 {[%clk 0:02:12]}  Bxd3 {[%clk 0:01:33]} 20. Be3 {[%clk 0:02:06]}  Rb8 {[%clk 0:01:12]} 21. b3 {[%clk 0:01:59]}  f6 {[%clk 0:01:05]} 22. Rad1 {[%clk 0:01:58]}  Bb5 {[%clk 0:00:53]} 23. exf6 {[%clk 0:01:53]}  Bxf6 {[%clk 0:00:45]} 24. Rxd7 {[%clk 0:01:53]}  Rf7 {[%clk 0:00:32]} 25. Red1 {[%clk 0:01:52]}  Be7 {[%clk 0:00:27]} 26. Bh3 {[%clk 0:01:44]}  Kf8 {[%clk 0:00:24]} 27. Be6 {[%clk 0:01:43]}  Rf6 {[%clk 0:00:21]} 28. Bh3 {[%clk 0:01:31]}  g5 {[%clk 0:00:20]} 29. Bd4 {[%clk 0:01:18]}  Rd6 {[%clk 0:00:17]} 30. Rxd6 {[%clk 0:00:59]}  cxd6 {[%clk 0:00:18]} 31. f5 {[%clk 0:00:45]}  c5 {[%clk 0:00:17]} 32. Bc3 {[%clk 0:00:44]}  Kf7 {[%clk 0:00:16]} 33. Bg2 {[%clk 0:00:38]}  a5 {[%clk 0:00:16]} 34. Bd5+ {[%clk 0:00:39]}  Kf8 {[%clk 0:00:15]} 35. f6 {[%clk 0:00:39]}  Bd8 {[%clk 0:00:15]} 36. Be6 {[%clk 0:00:39]}  a4 {[%clk 0:00:14]} 37. Rxd6 {[%clk 0:00:38]}  axb3 {[%clk 0:00:13]} 38. axb3 {[%clk 0:00:39]}  c4 {[%clk 0:00:13]} 39. bxc4 {[%clk 0:00:38]}  Bc7 {[%clk 0:00:12]} 40. Rd2 {[%clk 0:00:30]}  Bc6 {[%clk 0:00:12]} 41. Bd4 {[%clk 0:00:27]}  Re8 {[%clk 0:00:12]} 42. Bc5+ {[%clk 0:00:27]} 1-0


[Site "https://www.chess.com"]

[Event "Titled Tuesday Blitz February 28 Late 2023"]
[White "tandercat"]
[Black "Skaric, Djuro"]
[BlackFideId "934569"]
[WhiteElo "1888"]
[BlackElo "2282"]
[Result "0-1"]
[Round "06"]
[TimeControl "180+2"]
[Date "2023.02.28"]
[WhiteClock "0:00:01"]
[BlackClock "0:00:55"]

1. d4 {[%clk 0:03:00]}  d6 {[%clk 0:03:00]} 2. c4 {[%clk 0:02:54]}  g6 {[%clk 0:02:59]} 3. Nc3 {[%clk 0:02:53]}  Bg7 {[%clk 0:02:59]} 4. e4 {[%clk 0:02:53]}  Nf6 {[%clk 0:03:00]} 5. f4 {[%clk 0:02:53]}  O-O {[%clk 0:03:00]} 6. Nf3 {[%clk 0:02:53]}  c5 {[%clk 0:03:00]} 7. d5 {[%clk 0:02:53]}  e6 {[%clk 0:03:00]} 8. dxe6 {[%clk 0:02:53]}  fxe6 {[%clk 0:03:00]} 9. Bd3 {[%clk 0:02:54]}  Nc6 {[%clk 0:02:59]} 10. O-O {[%clk 0:02:53]}  d5 {[%clk 0:02:59]} 11. e5 {[%clk 0:02:51]}  Ng4 {[%clk 0:02:58]} 12. h3 {[%clk 0:02:22]}  Nh6 {[%clk 0:02:58]} 13. Qe2 {[%clk 0:01:43]}  Nd4 {[%clk 0:02:42]} 14. Nxd4 {[%clk 0:01:42]}  cxd4 {[%clk 0:02:42]} 15. Nb5 {[%clk 0:01:39]}  dxc4 {[%clk 0:02:42]} 16. Bxc4 {[%clk 0:01:37]}  Nf5 {[%clk 0:02:41]} 17. Rd1 {[%clk 0:01:25]}  a6 {[%clk 0:02:41]} 18. Nc3 {[%clk 0:01:18]}  b5 {[%clk 0:02:33]} 19. Bb3 {[%clk 0:01:11]}  Qb6 {[%clk 0:02:28]} 20. Ne4 {[%clk 0:01:05]}  Bb7 {[%clk 0:02:22]} 21. Rd3 {[%clk 0:00:59]}  a5 {[%clk 0:02:14]} 22. g4 {[%clk 0:00:53]}  a4 {[%clk 0:02:12]} 23. gxf5 {[%clk 0:00:40]}  axb3 {[%clk 0:02:12]} 24. f6 {[%clk 0:00:41]}  Qc6 {[%clk 0:02:01]} 25. Rxb3 {[%clk 0:00:27]}  Bh6 {[%clk 0:01:49]} 26. Ng3 {[%clk 0:00:21]}  d3 {[%clk 0:01:32]} 27. Qf2 {[%clk 0:00:18]}  Rac8 {[%clk 0:01:28]} 28. Bd2 {[%clk 0:00:16]}  Rfd8 {[%clk 0:01:24]} 29. Rc1 {[%clk 0:00:13]}  Qd5 {[%clk 0:01:22]} 30. Rxc8 {[%clk 0:00:12]}  Rxc8 {[%clk 0:01:22]} 31. Rc3 {[%clk 0:00:11]}  Rxc3 {[%clk 0:01:16]} 32. bxc3 {[%clk 0:00:08]}  Qxa2 {[%clk 0:01:15]} 33. h4 {[%clk 0:00:05]}  Qd5 {[%clk 0:01:10]} 34. Kh2 {[%clk 0:00:04]}  Bf8 {[%clk 0:01:08]} 35. h5 {[%clk 0:00:04]}  Bc5 {[%clk 0:01:08]} 36. Qf1 {[%clk 0:00:01]}  Kf7 {[%clk 0:00:57]} 37. hxg6+ {[%clk 0:00:02]}  hxg6 {[%clk 0:00:57]} 38. Qh3 {[%clk 0:00:01]}  Ke8 {[%clk 0:00:55]} 0-1


[Site "https://www.chess.com"]

[Event "Titled Tuesday Blitz February 28 Late 2023"]
[White "Michalski, Olaf"]
[Black "Guimaraes, Wagner Peixoto"]
[WhiteFideId "1106740"]
[BlackFideId "2100940"]
[WhiteElo "2173"]
[BlackElo "2185"]
[Result "0-1"]
[Round "06"]
[TimeControl "180+2"]
[Date "2023.02.28"]
[WhiteClock "0:00:01"]
[BlackClock "0:00:07"]

1. d4 {[%clk 0:02:56]}  d5 {[%clk 0:02:56]} 2. c4 {[%clk 0:02:56]}  e6 {[%clk 0:02:55]} 3. Nc3 {[%clk 0:02:55]}  Nf6 {[%clk 0:02:52]} 4. Bg5 {[%clk 0:02:54]}  c6 {[%clk 0:02:38]} 5. e3 {[%clk 0:02:54]}  h6 {[%clk 0:02:37]} 6. Bh4 {[%clk 0:02:54]}  Nbd7 {[%clk 0:02:28]} 7. Nf3 {[%clk 0:02:51]}  Be7 {[%clk 0:02:26]} 8. Rc1 {[%clk 0:02:49]}  O-O {[%clk 0:02:25]} 9. Bd3 {[%clk 0:02:40]}  dxc4 {[%clk 0:02:24]} 10. Bxc4 {[%clk 0:02:40]}  Nd5 {[%clk 0:02:25]} 11. Bg3 {[%clk 0:02:40]}  Nxc3 {[%clk 0:02:18]} 12. bxc3 {[%clk 0:02:39]}  b6 {[%clk 0:02:18]} 13. a4 {[%clk 0:02:18]}  Bb7 {[%clk 0:02:16]} 14. O-O {[%clk 0:02:17]}  Rc8 {[%clk 0:02:00]} 15. Qe2 {[%clk 0:02:12]}  Nf6 {[%clk 0:01:56]} 16. Ba6 {[%clk 0:02:02]}  Bxa6 {[%clk 0:01:29]} 17. Qxa6 {[%clk 0:02:01]}  Ra8 {[%clk 0:01:25]} 18. Ne5 {[%clk 0:01:53]}  Qc8 {[%clk 0:01:21]} 19. Qd3 {[%clk 0:01:41]}  c5 {[%clk 0:01:16]} 20. f3 {[%clk 0:01:20]}  Rd8 {[%clk 0:01:13]} 21. Qb5 {[%clk 0:01:18]}  Nd5 {[%clk 0:00:44]} 22. e4 {[%clk 0:01:06]}  Nf6 {[%clk 0:00:38]} 23. Nc6 {[%clk 0:00:57]}  Re8 {[%clk 0:00:38]} 24. Nxe7+ {[%clk 0:00:46]}  Rxe7 {[%clk 0:00:39]} 25. Bd6 {[%clk 0:00:46]}  Re8 {[%clk 0:00:33]} 26. dxc5 {[%clk 0:00:33]}  bxc5 {[%clk 0:00:33]} 27. Qxc5 {[%clk 0:00:32]}  Qa6 {[%clk 0:00:28]} 28. e5 {[%clk 0:00:20]}  Nd5 {[%clk 0:00:24]} 29. c4 {[%clk 0:00:20]}  Nf4 {[%clk 0:00:24]} 30. Qe3 {[%clk 0:00:17]}  g5 {[%clk 0:00:14]} 31. g3 {[%clk 0:00:14]}  Ng6 {[%clk 0:00:14]} 32. Qa3 {[%clk 0:00:14]}  Rac8 {[%clk 0:00:11]} 33. c5 {[%clk 0:00:14]}  Qe2 {[%clk 0:00:10]} 34. Rf2 {[%clk 0:00:13]}  Qa6 {[%clk 0:00:10]} 35. Rfc2 {[%clk 0:00:11]}  Qc6 {[%clk 0:00:09]} 36. Qb3 {[%clk 0:00:07]}  Kg7 {[%clk 0:00:08]} 37. Kf2 {[%clk 0:00:07]}  Qd5 {[%clk 0:00:08]} 38. Qxd5 {[%clk 0:00:07]}  exd5 {[%clk 0:00:07]} 39. Ke3 {[%clk 0:00:07]}  Nxe5 {[%clk 0:00:07]} 40. Bxe5+ {[%clk 0:00:05]}  Rxe5+ {[%clk 0:00:08]} 41. Kd4 {[%clk 0:00:05]}  Rf5 {[%clk 0:00:08]} 42. Rc3 {[%clk 0:00:04]}  Kf6 {[%clk 0:00:07]} 43. c6 {[%clk 0:00:04]}  Ke6 {[%clk 0:00:07]} 44. Re3+ {[%clk 0:00:01]}  Kd6 {[%clk 0:00:07]} 45. g4 {[%clk 0:00:01]}  Rf4+ {[%clk 0:00:07]} 46. Kd3 {[%clk 0:00:01]}  Rxc6 {[%clk 0:00:07]} 0-1


[Site "https://www.chess.com"]

[Event "Titled Tuesday Blitz February 28 Late 2023"]
[White "Pissama Ntsaou, Martial"]
[Black "Mendez Machado, Andre"]
[WhiteFideId "17400864"]
[BlackFideId "6603793"]
[WhiteElo "2066"]
[BlackElo "1989"]
[Result "1-0"]
[Round "06"]
[TimeControl "180+2"]
[Date "2023.02.28"]
[WhiteClock "0:00:16"]
[BlackClock "0:00:08"]

1. e4 {[%clk 0:02:58]}  e5 {[%clk 0:02:59]} 2. Nf3 {[%clk 0:02:57]}  Nc6 {[%clk 0:03:00]} 3. Bc4 {[%clk 0:02:57]}  Bc5 {[%clk 0:03:00]} 4. O-O {[%clk 0:02:56]}  Nf6 {[%clk 0:02:59]} 5. d3 {[%clk 0:02:56]}  d6 {[%clk 0:02:58]} 6. c3 {[%clk 0:02:54]}  a6 {[%clk 0:02:58]} 7. Bb3 {[%clk 0:02:53]}  Ba7 {[%clk 0:02:58]} 8. Re1 {[%clk 0:02:52]}  O-O {[%clk 0:02:58]} 9. h3 {[%clk 0:02:48]}  Kh8 {[%clk 0:02:56]} 10. Bg5 {[%clk 0:02:46]}  h6 {[%clk 0:02:55]} 11. Bh4 {[%clk 0:02:45]}  Be6 {[%clk 0:02:52]} 12. Nbd2 {[%clk 0:02:40]}  g5 {[%clk 0:02:33]} 13. Bg3 {[%clk 0:02:34]}  Nh5 {[%clk 0:02:26]} 14. Nxe5 {[%clk 0:02:18]}  Nxg3 {[%clk 0:02:23]} 15. Nxc6 {[%clk 0:02:17]}  bxc6 {[%clk 0:02:22]} 16. d4 {[%clk 0:02:15]}  c5 {[%clk 0:01:33]} 17. fxg3 {[%clk 0:02:11]}  cxd4 {[%clk 0:01:32]} 18. Qh5 {[%clk 0:02:10]}  dxc3+ {[%clk 0:01:26]} 19. Kh2 {[%clk 0:02:10]}  Kg7 {[%clk 0:01:04]} 20. bxc3 {[%clk 0:02:02]}  Qf6 {[%clk 0:01:00]} 21. Rf1 {[%clk 0:01:40]}  Qg6 {[%clk 0:00:40]} 22. Qf3 {[%clk 0:01:26]}  g4 {[%clk 0:00:37]} 23. Qf4 {[%clk 0:01:10]}  gxh3 {[%clk 0:00:29]} 24. gxh3 {[%clk 0:01:11]}  Qh5 {[%clk 0:00:27]} 25. Qf6+ {[%clk 0:01:04]}  Kg8 {[%clk 0:00:20]} 26. Bxe6 {[%clk 0:01:01]}  fxe6 {[%clk 0:00:17]} 27. Qxe6+ {[%clk 0:01:02]}  Kh8 {[%clk 0:00:14]} 28. g4 {[%clk 0:00:45]}  Qg5 {[%clk 0:00:11]} 29. Nf3 {[%clk 0:00:41]}  Qf4+ {[%clk 0:00:10]} 30. Kg2 {[%clk 0:00:39]}  Rf6 {[%clk 0:00:10]} 31. Qe7 {[%clk 0:00:25]}  Raf8 {[%clk 0:00:09]} 32. Nh2 {[%clk 0:00:25]}  Qd2+ {[%clk 0:00:09]} 33. Kh1 {[%clk 0:00:21]}  Rxf1+ {[%clk 0:00:08]} 34. Rxf1 {[%clk 0:00:22]}  Rxf1+ {[%clk 0:00:07]} 35. Nxf1 {[%clk 0:00:22]}  Qf2 {[%clk 0:00:08]} 36. Qe8+ {[%clk 0:00:20]}  Kg7 {[%clk 0:00:08]} 37. Qe7+ {[%clk 0:00:21]}  Kg8 {[%clk 0:00:09]} 38. Qe8+ {[%clk 0:00:21]}  Kg7 {[%clk 0:00:09]} 39. Qe7+ {[%clk 0:00:21]}  Kg8 {[%clk 0:00:08]} 40. Qe8+ {[%clk 0:00:18]}  Kh7 {[%clk 0:00:08]} 41. Qe7+ {[%clk 0:00:18]}  Kg6 {[%clk 0:00:08]} 42. Qe8+ {[%clk 0:00:17]}  Kg5 {[%clk 0:00:08]} 43. Qh5+ {[%clk 0:00:16]}  Kf4 {[%clk 0:00:08]} 44. Qf5# {[%clk 0:00:16]} 1-0


[Site "https://www.chess.com"]

[Event "Titled Tuesday Blitz February 28 Late 2023"]
[White "Golichenko, Ilija"]
[Black "rikchessmx"]
[WhiteFideId "14117223"]
[WhiteElo "2350"]
[BlackElo "2161"]
[Result "0-1"]
[Round "06"]
[TimeControl "180+2"]
[Date "2023.02.28"]
[WhiteClock "0:00:24"]
[BlackClock "0:00:49"]

1. d4 {[%clk 0:03:00]}  Nf6 {[%clk 0:02:58]} 2. Nc3 {[%clk 0:02:59]}  e6 {[%clk 0:02:59]} 3. e4 {[%clk 0:02:50]}  c5 {[%clk 0:02:57]} 4. d5 {[%clk 0:02:48]}  e5 {[%clk 0:02:56]} 5. Nf3 {[%clk 0:02:45]}  d6 {[%clk 0:02:56]} 6. Nd2 {[%clk 0:02:44]}  a6 {[%clk 0:02:55]} 7. a4 {[%clk 0:02:44]}  g6 {[%clk 0:02:55]} 8. Nc4 {[%clk 0:02:42]}  Bg7 {[%clk 0:02:54]} 9. Be2 {[%clk 0:02:39]}  O-O {[%clk 0:02:53]} 10. O-O {[%clk 0:02:39]}  Qe7 {[%clk 0:02:53]} 11. Nb6 {[%clk 0:02:33]}  Ra7 {[%clk 0:02:53]} 12. a5 {[%clk 0:02:33]}  Nbd7 {[%clk 0:02:53]} 13. Nc4 {[%clk 0:02:31]}  Kh8 {[%clk 0:02:48]} 14. h3 {[%clk 0:02:22]}  Ng8 {[%clk 0:02:48]} 15. f4 {[%clk 0:02:21]}  f5 {[%clk 0:02:45]} 16. exf5 {[%clk 0:02:00]}  gxf5 {[%clk 0:02:44]} 17. fxe5 {[%clk 0:01:58]}  Nxe5 {[%clk 0:02:43]} 18. Nxe5 {[%clk 0:01:58]}  Bxe5 {[%clk 0:02:39]} 19. Bf3 {[%clk 0:01:54]}  Bd7 {[%clk 0:02:38]} 20. Bd2 {[%clk 0:01:48]}  Raa8 {[%clk 0:02:13]} 21. Qe2 {[%clk 0:01:46]}  Qg7 {[%clk 0:02:13]} 22. Rae1 {[%clk 0:01:45]}  Qg3 {[%clk 0:02:12]} 23. Qc4 {[%clk 0:01:23]}  Rae8 {[%clk 0:01:51]} 24. Rxe5 {[%clk 0:01:21]}  dxe5 {[%clk 0:01:47]} 25. Be1 {[%clk 0:01:18]}  Qg5 {[%clk 0:01:42]} 26. Qxc5 {[%clk 0:01:17]}  e4 {[%clk 0:01:41]} 27. Be2 {[%clk 0:01:00]}  f4 {[%clk 0:01:41]} 28. Bf2 {[%clk 0:00:55]}  Bxh3 {[%clk 0:01:39]} 29. Bd4+ {[%clk 0:00:54]}  Nf6 {[%clk 0:01:38]} 30. Rf2 {[%clk 0:00:48]}  f3 {[%clk 0:01:37]} 31. Bf1 {[%clk 0:00:46]}  Kg8 {[%clk 0:01:25]} 32. Bxf6 {[%clk 0:00:42]}  Rxf6 {[%clk 0:01:22]} 33. Bc4 {[%clk 0:00:34]}  Qc1+ {[%clk 0:01:08]} 34. Kh2 {[%clk 0:00:32]}  Qf4+ {[%clk 0:01:06]} 35. g3 {[%clk 0:00:32]}  Qh6 {[%clk 0:01:02]} 36. d6+ {[%clk 0:00:29]}  Be6+ {[%clk 0:01:01]} 37. Kg1 {[%clk 0:00:29]}  e3 {[%clk 0:00:52]} 38. Rh2 {[%clk 0:00:24]}  f2+ {[%clk 0:00:51]} 39. Kg2 {[%clk 0:00:24]}  f1=Q+ {[%clk 0:00:51]} 40. Bxf1 {[%clk 0:00:24]}  Rf2+ {[%clk 0:00:49]} 0-1


[Site "https://www.chess.com"]